fUSD/lending_fUSD_20241018
["ID","MTS","AMOUNT","RATE_DAILY","PERIOD"]
[340416000,1729225833342,-9625.41870197,0.00010858,2]
[340416001,1729225833365,-2167.0,0.00010858,2]
[340416002,1729225833375,-1918.93789803,0.00010858,2]
[340416003,1729225833385,-150.0,0.00010861,2]
[340416004,1729225833394,-150.0,0.00010863,2]
[340416005,1729225833404,-150.0,0.00010864,2]
[340416006,1729225833413,-150.0,0.00010865,2]
[340416007,1729225833422,-150.0,0.00010867,2]
[340416008,1729225833431,-150.0,0.00010867,2]
[340416009,1729225833439,-150.0,0.00010869,2]
[340416010,1729225833448,-150.0,0.00010874,2]
[340416011,1729225833457,-150.0,0.00010878,2]
[340416012,1729225833467,-150.0,0.0001088,2]
[340416013,1729225833476,-150.0,0.00010882,2]
[340416014,1729225833485,-150.0,0.00010883,2]
[340416015,1729225833494,-150.0,0.00010884,2]
[340416016,1729225833503,-150.0,0.0001089,2]
[340416017,1729225833512,-150.0,0.00010895,2]
[340416018,1729225833521,-150.0,0.00010895,2]
[340416019,1729225833531,-150.0,0.00010899,2]
[340416020,1729225833539,-312.08478333,0.000109,2]
[340416028,1729225838253,-150.0,0.00010801,2]
[340416029,1729225838263,-277.58059227,0.00010891,2]
[340416030,1729225838272,-443.98521667,0.000109,2]
[340416031,1729225838281,-150.0,0.000109,2]
[340416032,1729225838290,-800.0,0.000109,3]
[340416033,1729225838300,-430.03,0.000109,2]
[340416034,1729225838310,-1520.54,0.000109,2]
[340416035,1729225838320,-1853.45927637,0.00010951,2]
[340416036,1729225838333,-4208.89808,0.00010951,2]
[340416037,1729225838348,-662.9455,0.00010951,2]
[340416038,1729225838396,-3197.55,0.00010951,2]
[340416039,1729225838486,-646.8411,0.00010951,2]
[340416075,1729225840355,-379.899993,0.00010951,2]
[340416076,1729225840417,-2111.31474678,0.00010951,2]
[340416138,1729225844121,-1324.98339965,0.00010951,2]
[340416139,1729225844131,-5523.0028079,0.00010951,2]
[340416140,1729225844141,-50062.54500274,0.00010951,2]
[340416141,1729225844229,-21194.0593042,0.00010951,2]
[340416142,1729225844289,-6879.42443956,0.00010951,2]
[340416143,1729225844299,-150.0,0.00010957,2]
[340416144,1729225844309,-150.0,0.00010957,7]
[340416145,1729225844319,-175.50142193,0.00010957,7]
[340416146,1729225844328,-500.0,0.00010958,2]
[340416147,1729225844337,-283.56981683,0.00010958,2]
[340416148,1729225844347,-500.0,0.00010958,2]
[340416149,1729225844357,-500.0,0.00010958,2]
[340416150,1729225844368,-500.0,0.00010958,2]
[340416151,1729225844379,-346.38646683,0.00010958,2]
[340416152,1729225844390,-227.94894652,0.00010958,2]
[340416153,1729225844399,-533.46205135,0.00010958,2]
[340416154,1729225844410,-949.61,0.00010958,2]
[340416155,1729225844420,-949.61,0.00010958,2]
[340416156,1729225844429,-949.61,0.00010958,2]
[340416157,1729225844438,-949.61,0.00010958,2]
[340416158,1729225844448,-949.61,0.00010958,2]
[340416159,1729225844457,-949.61,0.00010958,2]
[340416161,1729225844466,-949.61,0.00010958,2]
[340416163,1729225844476,-949.61,0.00010958,2]
[340416165,1729225844486,-949.61,0.00010958,2]
[340416167,1729225844496,-949.61,0.00010958,2]
[340416169,1729225844505,-949.61,0.00010958,2]
[340416171,1729225844515,-949.61,0.00010958,2]
[340416173,1729225844525,-949.61,0.00010958,2]
[340416175,1729225844535,-949.61,0.00010958,2]
[340416177,1729225844545,-949.61,0.00010958,2]
[340416179,1729225844555,-949.61,0.00010958,2]
[340416181,1729225844564,-949.61,0.00010958,2]
[340416183,1729225844574,-949.61,0.00010958,2]
[340416185,1729225844583,-949.61,0.00010958,2]
[340416187,1729225844593,-949.61,0.00010958,2]
[340416189,1729225844603,-949.61,0.00010958,2]
[340416191,1729225844613,-500.0,0.00010958,2]
[340416193,1729225844623,-949.61,0.00010958,2]
[340416195,1729225844633,-500.0,0.00010958,2]
[340416197,1729225844644,-949.61,0.00010958,2]
[340416199,1729225844655,-500.0,0.00010958,2]
[340416201,1729225844665,-949.83557494,0.00010958,2]
[340416203,1729225844676,-500.0,0.00010958,2]
[340416205,1729225844686,-500.0,0.00010958,2]
[340416207,1729225844696,-500.0,0.00010958,2]
[340416209,1729225844707,-500.0,0.00010958,2]
[340416211,1729225844717,-500.0,0.00010958,2]
[340416213,1729225844727,-500.0,0.00010958,2]
[340416215,1729225844736,-500.0,0.00010958,2]
[340416217,1729225844746,-500.0,0.00010958,2]
[340416219,1729225844756,-500.0,0.00010958,2]
[340416221,1729225844766,-500.0,0.00010958,2]
[340416223,1729225844776,-500.0,0.00010958,2]
[340416225,1729225844785,-500.0,0.00010958,2]
[340416226,1729225844795,-500.0,0.00010958,2]
[340416227,1729225844804,-500.0,0.00010958,2]
[340416228,1729225844814,-500.0,0.00010958,2]
[340416229,1729225844826,-500.0,0.00010958,2]
[340416230,1729225844835,-441.21466107,0.00010958,2]
[340416231,1729225844844,-500.0,0.00010958,2]
[340416232,1729225844854,-500.0,0.00010958,2]
[340416233,1729225844864,-500.0,0.00010958,2]
[340416234,1729225844874,-301.34815722,0.00010958,2]
[340416235,1729225844884,-500.0,0.00010958,2]
[340416236,1729225844894,-1338.09,0.00010958,2]
[340416237,1729225844904,-500.0,0.00010958,2]
[340416238,1729225844915,-1338.09,0.00010958,2]
[340416239,1729225844925,-500.0,0.00010958,2]
[340416240,1729225844935,-500.0,0.00010958,2]
[340416241,1729225844945,-500.0,0.00010958,2]
[340416242,1729225844955,-500.0,0.00010958,2]
[340416243,1729225844965,-1338.09,0.00010958,2]
[340416244,1729225844974,-500.0,0.00010958,2]
[340416245,1729225844984,-500.0,0.00010958,2]
[340416246,1729225844994,-1338.09,0.00010958,2]
[340416247,1729225845003,-500.0,0.00010958,2]
[340416248,1729225845014,-500.0,0.00010958,2]
[340416249,1729225845024,-500.0,0.00010958,2]
[340416250,1729225845034,-1338.09,0.00010958,2]
[340416251,1729225845043,-500.0,0.00010958,2]
[340416252,1729225845053,-500.0,0.00010958,2]
[340416253,1729225845063,-500.0,0.00010958,2]
[340416254,1729225845072,-1338.09,0.00010958,2]
[340416255,1729225845082,-500.0,0.00010958,2]
[340416256,1729225845092,-500.0,0.00010958,2]
[340416257,1729225845102,-500.0,0.00010958,2]
[340416258,1729225845113,-1338.09,0.00010958,2]
[340416259,1729225845123,-500.0,0.00010958,2]
[340416260,1729225845133,-500.0,0.00010958,2]
[340416261,1729225845143,-500.0,0.00010958,2]
[340416262,1729225845153,-1338.09,0.00010958,2]
[340416263,1729225845163,-500.0,0.00010958,2]
[340416264,1729225845173,-500.0,0.00010958,2]
[340416265,1729225845183,-500.0,0.00010958,2]
[340416266,1729225845193,-1338.09,0.00010958,2]
[340416267,1729225845203,-500.0,0.00010958,2]
[340416268,1729225845213,-500.0,0.00010958,2]
[340416269,1729225845223,-500.0,0.00010958,2]
[340416270,1729225845233,-1338.09,0.00010958,2]
[340416271,1729225845243,-500.0,0.00010958,2]
[340416272,1729225845253,-500.0,0.00010958,2]
[340416273,1729225845262,-500.0,0.00010958,2]
[340416274,1729225845272,-1338.09,0.00010958,2]
[340416275,1729225845281,-500.0,0.00010958,2]
[340416276,1729225845291,-500.0,0.00010958,2]
[340416277,1729225845301,-500.0,0.00010958,2]
[340416278,1729225845559,-1338.09,0.00010958,2]
[340416279,1729225845570,-500.0,0.00010958,2]
[340416280,1729225845580,-500.0,0.00010958,2]
[340416281,1729225845591,-500.0,0.00010958,2]
[340416282,1729225845601,-500.0,0.00010958,2]
[340416283,1729225845610,-1338.09,0.00010958,2]
[340416284,1729225845620,-500.0,0.00010958,2]
[340416285,1729225845630,-500.0,0.00010958,2]
[340416286,1729225845640,-527.0290075,0.00010958,2]
[340416287,1729225845651,-315.87686724,0.00010958,2]
[340416288,1729225845834,-184.12313276,0.00010958,2]
[340416289,1729225845845,-500.0,0.00010958,2]
[340416290,1729225845855,-1338.09,0.00010958,2]
[340416291,1729225845865,-500.0,0.00010958,2]
[340416292,1729225845874,-500.0,0.00010958,2]
[340416293,1729225845884,-500.0,0.00010958,2]
[340416294,1729225845893,-1338.09,0.00010958,2]
[340416295,1729225845903,-500.0,0.00010958,2]
[340416296,1729225845913,-500.0,0.00010958,2]
[340416297,1729225845923,-1338.09,0.00010958,2]
[340416298,1729225845933,-639.28237122,0.00010958,2]
[340416299,1729225845942,-500.0,0.00010958,2]
[340416300,1729225845952,-1338.09,0.00010958,2]
[340416301,1729225845961,-500.0,0.00010958,2]
[340416302,1729225845971,-1338.09,0.00010958,2]
[340416303,1729225845980,-500.0,0.00010958,2]
[340416304,1729225845990,-1338.09,0.00010958,2]
[340416305,1729225845999,-500.0,0.00010958,2]
[340416306,1729225846008,-1338.09,0.00010958,2]
[340416307,1729225846018,-500.0,0.00010958,2]
[340416308,1729225846028,-1338.09,0.00010958,2]
[340416309,1729225846037,-329.8890394,0.00010958,2]
[340416310,1729225846046,-1338.09,0.00010958,2]
[340416311,1729225846056,-1338.09,0.00010958,2]
[340416312,1729225846065,-1338.28781613,0.00010958,2]
[340416313,1729225846075,-500.0,0.00010958,2]
[340416314,1729225846084,-500.0,0.00010958,2]
[340416315,1729225846094,-500.0,0.00010958,2]
[340416316,1729225846103,-500.0,0.00010958,2]
[340416317,1729225846113,-500.0,0.00010958,2]
[340416318,1729225846122,-500.0,0.00010958,2]
[340416319,1729225846132,-500.0,0.00010958,2]
[340416320,1729225846141,-500.0,0.00010958,2]
[340416321,1729225846151,-500.0,0.00010958,2]
[340416322,1729225846160,-500.0,0.00010958,2]
[340416323,1729225846170,-500.0,0.00010958,2]
[340416324,1729225846180,-500.0,0.00010958,2]
[340416325,1729225846189,-500.0,0.00010958,2]
[340416326,1729225846198,-586.2827635,0.00010958,2]
[340416327,1729225846208,-491.21113168,0.00010958,2]
[340416328,1729225846217,-474.01936102,0.00010958,2]
[340416329,1729225846226,-500.0,0.00010958,2]
[340416330,1729225846235,-500.0,0.00010958,2]
[340416331,1729225846245,-500.0,0.00010958,2]
[340416332,1729225846255,-500.0,0.00010958,2]
[340416333,1729225846266,-500.0,0.00010958,2]
[340416334,1729225846275,-500.0,0.00010958,2]
[340416335,1729225846286,-500.0,0.00010958,2]
[340416336,1729225846295,-500.0,0.00010958,2]
[340416337,1729225846307,-500.0,0.00010958,2]
[340416338,1729225846318,-500.0,0.00010958,2]
[340416339,1729225846327,-500.0,0.00010958,2]
[340416340,1729225846337,-500.0,0.00010958,2]
[340416341,1729225846348,-500.0,0.00010958,2]
[340416342,1729225846357,-171.57559438,0.00010958,2]
[340416343,1729225846367,-500.0,0.00010958,2]
[340416344,1729225846376,-500.0,0.00010958,2]
[340416345,1729225846385,-500.0,0.00010958,2]
[340416346,1729225846394,-283.22177831,0.00010958,2]
[340416347,1729225846403,-500.0,0.00010958,2]
[340416348,1729225846413,-500.0,0.00010958,2]
[340416349,1729225846422,-500.0,0.00010958,2]
[340416350,1729225846431,-500.0,0.00010958,2]
[340416351,1729225846441,-467.55158416,0.00010958,2]
[340416352,1729225846450,-500.0,0.00010958,2]
[340416353,1729225846460,-500.0,0.00010958,2]
[340416354,1729225846470,-500.0,0.00010958,2]
[340416355,1729225846480,-500.0,0.00010958,2]
[340416356,1729225846489,-500.0,0.00010958,2]
[340416357,1729225846498,-179.47216316,0.00010958,2]
[340416358,1729225846507,-500.0,0.00010958,2]
[340416359,1729225846518,-500.0,0.00010958,2]
[340416360,1729225846528,-500.0,0.00010958,2]
[340416361,1729225846538,-500.0,0.00010958,2]
[340416362,1729225846548,-500.0,0.00010958,2]
[340416363,1729225846558,-500.0,0.00010958,2]
[340416364,1729225846568,-500.0,0.00010958,2]
[340416365,1729225846577,-500.0,0.00010958,2]
[340416366,1729225846586,-239.19996569,0.00010958,2]
[340416367,1729225846595,-1332.98,0.00010958,2]
[340416368,1729225846604,-1332.98,0.00010958,2]
[340416369,1729225846613,-500.0,0.00010958,2]
[340416370,1729225846623,-1332.98,0.00010958,2]
[340416371,1729225846631,-500.0,0.00010958,2]
[340416372,1729225846642,-1332.98,0.00010958,2]
[340416373,1729225846651,-519.63358974,0.00010958,2]
[340416374,1729225846660,-1332.98,0.00010958,2]
[340416375,1729225846669,-1332.98,0.00010958,2]
[340416376,1729225846678,-1332.98,0.00010958,2]
[340416377,1729225846687,-1332.98,0.00010958,2]
[340416378,1729225846696,-500.0,0.00010958,2]
[340416379,1729225846706,-1332.98,0.00010958,2]
[340416380,1729225846716,-500.0,0.00010958,2]
[340416381,1729225846728,-2554.11,0.00010958,2]
[340416382,1729225846742,-1332.98,0.00010958,2]
[340416383,1729225846751,-2554.11,0.00010958,2]
[340416384,1729225846760,-1332.98,0.00010958,2]
[340416385,1729225846769,-2554.11,0.00010958,2]
[340416386,1729225846778,-1332.98,0.00010958,2]
[340416387,1729225846787,-2554.11,0.00010958,2]
[340416388,1729225846797,-1332.98,0.00010958,2]
[340416389,1729225846806,-2554.11,0.00010958,2]
[340416390,1729225846816,-1332.98,0.00010958,2]
[340416391,1729225846825,-867.07,0.00010958,2]
[340416392,1729225846834,-2554.11,0.00010958,2]
[340416393,1729225846843,-1332.98,0.00010958,2]
[340416394,1729225846852,-867.07,0.00010958,2]
[340416395,1729225846863,-2554.11,0.00010958,2]
[340416396,1729225846874,-1332.98,0.00010958,2]
[340416397,1729225846885,-867.07,0.00010958,2]
[340416398,1729225846895,-2554.11,0.00010958,2]
[340416399,1729225846905,-1332.98,0.00010958,2]
[340416400,1729225846915,-867.07,0.00010958,2]
[340416401,1729225846925,-1332.98,0.00010958,2]
[340416402,1729225846936,-867.07,0.00010958,2]
[340416403,1729225846947,-1332.98,0.00010958,2]
[340416404,1729225846957,-867.07,0.00010958,2]
[340416405,1729225846967,-2554.11,0.00010958,2]
[340416406,1729225846977,-1332.98,0.00010958,2]
[340416407,1729225846986,-2554.11,0.00010958,2]
[340416408,1729225846996,-867.07,0.00010958,2]
[340416409,1729225847006,-1332.98,0.00010958,2]
[340416410,1729225847015,-867.07,0.00010958,2]
[340416411,1729225847024,-2554.11,0.00010958,2]
[340416412,1729225847033,-867.07,0.00010958,2]
[340416413,1729225847042,-1332.98,0.00010958,2]
[340416414,1729225847052,-2554.11,0.00010958,2]
[340416415,1729225847061,-1332.98,0.00010958,2]
[340416416,1729225847070,-867.07,0.00010958,2]
[340416417,1729225847079,-2554.11,0.00010958,2]
[340416418,1729225847088,-1333.06,0.00010958,2]
[340416419,1729225847097,-867.07,0.00010958,2]
[340416420,1729225847106,-2554.11,0.00010958,2]
[340416421,1729225847115,-500.0,0.00010958,2]
[340416422,1729225847125,-867.07,0.00010958,2]
[340416423,1729225847135,-2554.11,0.00010958,2]
[340416424,1729225847144,-500.0,0.00010958,2]
[340416425,1729225847154,-2554.11,0.00010958,2]
[340416426,1729225847164,-867.07,0.00010958,2]
[340416427,1729225847173,-500.0,0.00010958,2]
[340416428,1729225847182,-867.07,0.00010958,2]
[340416429,1729225847191,-2554.11,0.00010958,2]
[340416430,1729225847201,-867.07,0.00010958,2]
[340416431,1729225847210,-2554.11,0.00010958,2]
[340416432,1729225847219,-867.07,0.00010958,2]
[340416433,1729225847228,-500.0,0.00010958,2]
[340416434,1729225847237,-2554.11,0.00010958,2]
[340416435,1729225847246,-867.07,0.00010958,2]
[340416436,1729225847255,-500.0,0.00010958,2]
[340416437,1729225847264,-2554.11,0.00010958,2]
[340416438,1729225847273,-867.07,0.00010958,2]
[340416439,1729225847282,-500.0,0.00010958,2]
[340416440,1729225847291,-2554.11,0.00010958,2]
[340416441,1729225847300,-867.07,0.00010958,2]
[340416442,1729225847309,-500.0,0.00010958,2]
[340416443,1729225847318,-2554.11,0.00010958,2]
[340416444,1729225847327,-500.0,0.00010958,2]
[340416445,1729225847336,-867.07,0.00010958,2]
[340416446,1729225847345,-518.65971206,0.00010958,2]
[340416447,1729225847354,-2554.11,0.00010958,2]
[340416448,1729225847363,-207.64632268,0.00010958,2]
[340416449,1729225847373,-867.07,0.00010958,2]
[340416450,1729225847382,-2554.2524778,0.00010958,2]
[340416451,1729225847391,-867.07,0.00010958,2]
[340416452,1729225847400,-867.07,0.00010958,2]
[340416453,1729225847409,-867.14721593,0.00010958,2]
[340416454,1729225847418,-500.0,0.00010958,2]
[340416455,1729225847427,-500.0,0.00010958,2]
[340416456,1729225847436,-2034.32,0.00010958,2]
[340416457,1729225847446,-500.0,0.00010958,2]
[340416458,1729225847455,-2034.32,0.00010958,2]
[340416459,1729225847464,-500.0,0.00010958,2]
[340416460,1729225847474,-500.0,0.00010958,2]
[340416461,1729225847484,-2034.32,0.00010958,2]
[340416462,1729225847493,-500.0,0.00010958,2]
[340416463,1729225847502,-2034.32,0.00010958,2]
[340416464,1729225847511,-500.0,0.00010958,2]
[340416465,1729225847521,-2034.32,0.00010958,2]
[340416466,1729225847530,-500.0,0.00010958,2]
[340416467,1729225847539,-500.0,0.00010958,2]
[340416468,1729225847548,-500.0,0.00010958,2]
[340416469,1729225847557,-500.0,0.00010958,2]
[340416470,1729225847566,-500.0,0.00010958,2]
[340416471,1729225847575,-138.99060808,0.00010958,2]
[340416472,1729225848205,-361.00939192,0.00010958,2]
[340416473,1729225848215,-0.26767383,0.00010958,2]
[340416474,1729225848237,-558.22946058,0.00010958,2]
[340416475,1729225848247,-500.0,0.00010958,2]
[340416476,1729225848255,-368.46095724,0.00010958,2]
[340416477,1729225848287,-131.53904276,0.00010958,2]
[340416478,1729225848296,-500.0,0.00010958,2]
[340416479,1729225848305,-124.71987301,0.00010958,2]
[340416480,1729225848318,-375.28012699,0.00010958,2]
[340416481,1729225848327,-500.0,0.00010958,2]
[340416482,1729225848336,-405.53090483,0.00010958,2]
[340416483,1729225848354,-94.46909517,0.00010958,2]
[340416484,1729225848363,-500.0,0.00010958,2]
[340416485,1729225848372,-74.28420227,0.00010958,2]
[340416486,1729225852047,495.47,8.703e-05,2]
[340416487,1729225919672,250.0,0.00010209,2]
[340416488,1729226031312,334.4,0.00010029,2]
[340416490,1729226201557,10300.0,0.000101,3]
[340416491,1729226203928,20600.0,0.000102,3]
[340416492,1729226205791,400.0,0.000103,3]
[340416493,1729226205817,30500.0,0.000103,3]
[340416494,1729226207885,41200.0,0.000104,3]
[340416495,1729226210014,28300.0,0.000105,3]
[340416496,1729226210038,23200.0,0.000105,3]
[340416497,1729226396983,215.56,9.951e-05,2]
[340416498,1729226460390,494.54,8.219e-05,2]
[340416499,1729226552348,732.48,9.954e-05,2]
[340416500,1729226617405,250.0,9.954e-05,2]
[340416501,1729226619514,500.0,9.954e-05,3]
[340416504,1729226841147,-150.80774215,0.00010474,2]
[340416505,1729226841169,-494.54,0.00010474,2]
[340416506,1729226841189,-1158.4109,0.000105,2]
[340416507,1729226841210,-183.59,0.00010502,2]
[340416508,1729226841234,-169.98202016,0.00010605,2]
[340416509,1729226841255,-511.0601254,0.00010705,2]
[340416510,1729226841277,-20.4374796,0.00010712,2]
[340416511,1729226842596,2600.0,0.000101,3]
[340416512,1729226844947,5200.0,0.000102,3]
[340416513,1729226846821,7800.0,0.000103,3]
[340416514,1729226848916,10500.0,0.000104,3]
[340416515,1729226851001,13100.0,0.000105,3]
[340416517,1729226981455,470.0,8.219e-05,2]
[340416518,1729227026266,550.0,0.0001,2]
[340416519,1729227031392,-470.0,0.00010474,2]
[340416520,1729227031407,-165.65819807,0.00010474,2]
[340416521,1729227031419,-2600.0,0.000106,3]
[340416522,1729227031428,-1680.20827005,0.000107,3]
[340416523,1729227031439,-463.05,0.000107,3]
[340416524,1729227031559,-456.74172995,0.000107,3]
[340416525,1729227031568,-129.5625204,0.00010712,2]
[340416526,1729227031578,-1337.26606235,0.00010739,2]
[340416527,1729227031588,-499.99,0.000108,2]
[340416528,1729227031598,-2600.0,0.000108,3]
[340416529,1729227031607,-648.3381,0.00010851,2]
[340416530,1729227031617,-186.103,0.00010858,2]
[340416531,1729227031626,-173.39192528,0.00010858,2]
[340416532,1729227031636,-1000.0,0.00010858,2]
[340416533,1729227031645,-336.9163,0.00010858,2]
[340416534,1729227031654,-963.99700528,0.00010858,2]
[340416535,1729227031673,-380.67929472,0.00010858,2]
[340416536,1729227031682,-150.0,0.00010898,2]
[340416537,1729227031692,-375.57490873,0.00010899,2]
[340416538,1729227031704,-151.04192245,0.00010899,2]
[340416539,1729227031713,-226.8258991,0.00010899,2]
[340416540,1729227031724,-299.79093206,0.00010899,2]
[340416541,1729227031733,-526.61683116,0.00010899,2]
[340416542,1729227031743,-526.61683116,0.00010899,2]
[340416543,1729227031752,-526.61683116,0.00010899,2]
[340416544,1729227031761,-526.61683116,0.00010899,2]
[340416545,1729227031770,-526.61683116,0.00010899,2]
[340416546,1729227031781,-526.61683116,0.00010899,2]
[340416547,1729227031790,-526.61683116,0.00010899,2]
[340416549,1729227031800,-526.61683116,0.000109,2]
[340416551,1729227031809,-342.56015385,0.000109,3]
[340416553,1729227031820,-683.64,0.000109,3]
[340416556,1729227031838,-1573.79984615,0.000109,3]
[340416558,1729227031847,-434.86,0.000109,2]
[340416560,1729227031856,-424.27,0.000109,2]
[340416562,1729227031866,-273.40303312,0.000109,2]
[340416564,1729227031875,-365.31,0.000109,2]
[340416566,1729227031884,-11828.7846529,0.00010951,2]
[340416568,1729227031893,-63978.0663137,0.00010951,2]
[340416570,1729227031902,-4556.4905639,0.00010951,2]
[340416571,1729227031911,-200.49151238,0.00010957,3]
[340416572,1729227031922,-1068.82998554,0.00010957,3]
[340416573,1729227031933,-1068.82998554,0.00010957,3]
[340416574,1729227031943,-1068.82998554,0.00010957,3]
[340416575,1729227031954,-1068.82998554,0.00010957,3]
[340416576,1729227031967,-1068.82998554,0.00010957,3]
[340416577,1729227031977,-1068.82998554,0.00010957,3]
[340416578,1729227031987,-1068.82998554,0.00010957,3]
[340416579,1729227031996,-1068.82998554,0.00010957,3]
[340416580,1729227032008,-1068.82998554,0.00010957,3]
[340416581,1729227032021,-1068.82998553,0.00010957,3]
[340416582,1729227032031,-1068.82998554,0.00010957,3]
[340416583,1729227032040,-20205.44327018,0.00010957,2]
[340416584,1729227032061,-2534.578025,0.00010957,2]
[340416585,1729227032073,-11340.0000139,0.00010957,2]
[340416586,1729227033871,237.52,0.00010303,2]
[340416589,1729227037489,-672.04260973,0.00010858,2]
[340416590,1729227037548,-1736.03489027,0.00010858,2]
[340416591,1729227037557,-3730.5883956,0.00010957,2]
[340416592,1729227037605,-42077.43989831,0.00010957,2]
[340416593,1729227037615,-570.0,0.00010958,2]
[340416594,1729227037624,-595.72,0.00010958,2]
[340416595,1729227037634,-595.72,0.00010958,2]
[340416596,1729227037644,-595.72,0.00010958,2]
[340416597,1729227037654,-595.72,0.00010958,2]
[340416598,1729227037664,-595.72,0.00010958,2]
[340416599,1729227037673,-595.72,0.00010958,2]
[340416600,1729227037682,-595.72,0.00010958,2]
[340416601,1729227037692,-595.72,0.00010958,2]
[340416602,1729227037702,-595.72,0.00010958,2]
[340416603,1729227037711,-595.72,0.00010958,2]
[340416604,1729227037721,-595.72,0.00010958,2]
[340416605,1729227037730,-595.72,0.00010958,2]
[340416606,1729227037740,-595.72,0.00010958,2]
[340416607,1729227037750,-595.72,0.00010958,2]
[340416608,1729227037759,-595.72,0.00010958,2]
[340416609,1729227037769,-595.72,0.00010958,2]
[340416610,1729227037779,-595.72,0.00010958,2]
[340416611,1729227037788,-595.72,0.00010958,2]
[340416612,1729227037798,-595.72,0.00010958,2]
[340416613,1729227037807,-595.72,0.00010958,2]
[340416614,1729227037817,-595.72,0.00010958,2]
[340416615,1729227037827,-595.72,0.00010958,2]
[340416616,1729227037836,-595.72,0.00010958,2]
[340416617,1729227037845,-595.95674239,0.00010958,2]
[340416618,1729227037855,-500.0,0.00010958,2]
[340416619,1729227037864,-500.0,0.00010958,2]
[340416620,1729227037873,-500.0,0.00010958,2]
[340416621,1729227037883,-500.0,0.00010958,2]
[340416622,1729227037893,-500.0,0.00010958,2]
[340416623,1729227037902,-500.0,0.00010958,2]
[340416624,1729227037913,-500.0,0.00010958,2]
[340416625,1729227037923,-500.0,0.00010958,2]
[340416626,1729227037932,-500.0,0.00010958,2]
[340416628,1729227037942,-500.0,0.00010958,2]
[340416630,1729227037951,-500.0,0.00010958,2]
[340416632,1729227037960,-500.0,0.00010958,2]
[340416633,1729227037970,-500.0,0.00010958,2]
[340416634,1729227037979,-364.24164924,0.00010958,2]
[340416635,1729227037989,-500.0,0.00010958,2]
[340416636,1729227037998,-500.0,0.00010958,2]
[340416637,1729227038007,-500.0,0.00010958,2]
[340416638,1729227038016,-500.0,0.00010958,2]
[340416639,1729227038025,-500.0,0.00010958,2]
[340416640,1729227038035,-500.0,0.00010958,2]
[340416641,1729227038044,-500.0,0.00010958,2]
[340416642,1729227038054,-256.30712762,0.00010958,2]
[340416643,1729227038096,-243.69287238,0.00010958,2]
[340416644,1729227038106,-500.0,0.00010958,2]
[340416645,1729227038117,-32.06364038,0.00010958,2]
[340416646,1729227038130,-467.93635962,0.00010958,2]
[340416647,1729227038141,-66.39185169,0.00010958,2]
[340416648,1729227038158,-285.52775206,0.00010958,2]
[340416649,1729227038170,-148.08039625,0.00010958,2]
[340416650,1729227038180,-505.84063913,0.00010958,2]
[340416651,1729227038190,-505.55969698,0.00010958,2]
[340416652,1729227038200,-98.91845761,0.00010958,2]
[340416653,1729227038213,-401.08154239,0.00010958,2]
[340416654,1729227038223,-450.28046434,0.00010958,2]
[340416655,1729227038235,-49.71953566,0.00010958,2]
[340416656,1729227038244,-203.093635,0.00010958,2]